bitfinex-derivatives/quotes_BTCF0:USTF0_20241120
["timestamp","ask_amount","ask_price","bid_price","bid_amount"]
[1732095535929,0.053564,93247.0,93246.0,0.36447112]
[1732095536226,0.053564,93247.0,93246.0,0.36450344]
[1732095536526,0.053564,93247.0,93245.0,0.053565]
[1732095536728,0.3608,93251.0,93236.0,0.3608]
[1732095537031,0.3608,93251.0,93242.0,0.116167]
[1732095537032,0.053566,93244.0,93242.0,0.116167]
[1732095539418,0.40451967,93251.0,93249.0,0.053562]
[1732095539419,0.00072,93251.0,93249.0,0.053562]
[1732095539618,0.053557,93261.0,93250.0,0.10300483]
[1732095539823,0.053557,93261.0,93257.0,0.053558]
[1732095540421,0.053557,93259.0,93257.0,0.053558]
[1732095541218,0.053557,93259.0,93250.0,0.10300483]
[1732095541219,0.36156,93263.0,93250.0,0.10300483]
[1732095541413,0.36156,93263.0,93247.0,0.053564]
[1732095541414,0.053552,93268.0,93262.0,0.3608]
[1732095541621,0.053552,93268.0,93267.0,0.053553]
[1732095542018,0.053549,93275.0,93263.0,0.0631]
[1732095542224,0.021434,93277.0,93269.0,0.053551]
[1732095542421,0.053551,93271.0,93269.0,0.053551]
[1732095544129,0.053551,93271.0,93263.0,0.0631]
[1732095544130,0.04252129,93274.0,93265.0,0.25619051]
[1732095544432,0.10300483,93267.0,93265.0,0.25619051]
[1732095544642,0.10300483,93267.0,93261.0,0.25619051]
[1732095544825,0.10300483,93267.0,93253.0,0.12316]
[1732095544826,0.053557,93260.0,93259.0,0.25619051]
[1732095545133,0.3608,93263.0,93254.0,0.05356]
[1732095545134,0.053559,93256.0,93254.0,0.05356]
[1732095546635,0.3608,93263.0,93253.0,0.12316]
[1732095546636,0.05356,93254.0,93253.0,0.12316]
[1732095547853,0.10300483,93260.0,93241.0,0.38439298]
[1732095548135,0.3608,93263.0,93248.0,0.25616506]
[1732095548136,0.053561,93252.0,93248.0,0.25616506]
[1732095548321,0.3608,93254.0,93247.0,0.25616506]
[1732095548322,0.053563,93249.0,93247.0,0.25616506]
[1732095548529,0.053564,93247.0,93245.0,0.25616506]
[1732095548722,0.3608,93246.0,93244.0,0.25620232]
[1732095548931,0.053565,93245.0,93244.0,0.25620232]
[1732095549128,0.053565,93245.0,93243.0,0.25620232]
[1732095549333,0.053565,93245.0,93244.0,0.25620232]
[1732095549539,0.053565,93245.0,93243.0,0.25620232]
[1732095550330,0.053569,93239.0,93238.0,9.597e-05]
[1732095552532,0.053567,93242.0,93241.0,0.053567]
[1732095552830,0.053567,93242.0,93236.0,0.19217459]
[1732095552831,0.60968863,93242.0,93236.0,0.19217459]
[1732095553029,0.60968863,93242.0,93213.0,0.38439298]
[1732095553030,0.053573,93233.0,93226.0,0.053576]
[1732095553234,0.3608,93229.0,93213.0,0.0319]
[1732095553446,0.3608,93229.0,93214.0,0.12316]
[1732095553639,0.053576,93227.0,93221.0,0.053579]
[1732095553827,0.05367345,93226.0,93221.0,0.053579]
[1732095554433,0.053577,93225.0,93221.0,0.053579]
[1732095554846,0.053577,93225.0,93215.0,0.12316]
[1732095555147,0.053577,93225.0,93222.0,0.053578]
[1732095556038,9.745e-05,93226.0,93216.0,0.180542]
[1732095556039,0.053579,93221.0,93216.0,0.180542]
[1732095556241,0.053579,93221.0,93216.0,0.12696]
[1732095556542,0.053579,93221.0,93217.0,0.053581]
[1732095556846,0.053579,93221.0,93219.0,0.05358]
[1732095558442,0.053579,93221.0,93220.0,0.25620232]
[1732095558834,0.053579,93221.0,93219.0,0.05358]
[1732095560047,0.053579,93221.0,93220.0,0.05358]
[1732095562844,0.053579,93221.0,93220.0,0.30962023]
[1732095563746,0.053579,93221.0,93220.0,0.05358]
[1732095563950,0.053579,93221.0,93220.0,0.30962464]
[1732095565551,0.053579,93221.0,93220.0,0.05358]
[1732095565752,9.745e-05,93226.0,93225.0,0.053577]
[1732095565940,9.745e-05,93226.0,93217.0,0.10300483]
[1732095565941,0.31099745,93229.0,93228.0,0.053575]
[1732095571254,0.053572,93234.0,93231.0,0.053573]
[1732095571466,0.053572,93234.0,93232.0,0.084373]
[1732095572360,0.053572,93234.0,93232.0,0.3404112]
[1732095573244,0.053572,93234.0,93232.0,0.084373]
[1732095580865,0.053572,93234.0,93232.0,0.0308]
[1732095581070,0.053572,93234.0,93233.0,0.053572]
[1732095584584,0.10300483,93237.0,93232.0,0.0308]
[1732095584768,0.36156,93239.0,93238.0,0.053569]
[1732095585073,0.3608,93239.0,93238.0,0.053569]
[1732095585369,0.36148,93250.0,93249.0,0.053563]
[1732095585576,0.36148,93250.0,93239.0,0.031]
[1732095585577,0.04204464,93250.0,93239.0,0.031]
[1732095585763,0.05356,93254.0,93250.0,0.053562]
[1732095585966,0.05356,93254.0,93251.0,0.085662]
[1732095586167,0.05356,93254.0,93252.0,0.053561]
[1732095586365,0.414361,93253.0,93252.0,0.053561]
[1732095586569,0.053561,93252.0,93251.0,0.0321]
[1732095595582,0.414361,93252.0,93251.0,0.0321]
[1732095596480,0.053561,93252.0,93251.0,0.0321]
[1732095596674,0.414361,93252.0,93251.0,0.0321]
[1732095600492,0.414361,93252.0,93249.0,0.25671239]
[1732095600493,0.053562,93250.0,93249.0,0.25671239]
[1732095600680,0.053563,93249.0,93248.0,0.25671239]
[1732095600984,0.10300483,93249.0,93247.0,0.25671239]
[1732095601191,0.053564,93248.0,93247.0,0.25671239]
[1732095601379,0.10300483,93249.0,93242.0,0.32089049]
[1732095601689,0.15656783,93249.0,93248.0,0.25689571]
[1732095601985,0.053564,93248.0,93247.0,0.25689571]
[1732095602187,0.053565,93246.0,93245.0,0.053565]
[1732095603183,0.053568,93242.0,93240.0,0.37445849]
[1732095603374,0.053568,93242.0,93241.0,0.053568]
[1732095605081,0.10300483,93249.0,93237.0,0.12216]
[1732095605285,0.053563,93249.0,93248.0,0.053564]
[1732095605791,0.053566,93245.0,93237.0,0.12216]
[1732095606288,0.053566,93245.0,93238.0,0.053569]
[1732095606491,0.053566,93245.0,93243.0,0.053566]
[1732095606881,0.415043,93250.0,93243.0,0.3608]
[1732095607080,0.414363,93250.0,93249.0,0.053563]
[1732095610089,0.3608,93250.0,93249.0,0.053563]
[1732095611202,0.3608,93250.0,93249.0,0.175683]
[1732095611593,0.3608,93250.0,93249.0,0.53764973]
[1732095613589,0.04174864,93254.0,93249.0,0.48408673]
[1732095613787,0.053559,93257.0,93255.0,0.053559]
[1732095613990,0.053559,93257.0,93256.0,0.0317]
[1732095614500,0.053559,93257.0,93256.0,0.085259]
[1732095615491,0.09601245,93257.0,93256.0,0.085259]
[1732095617493,0.04245345,93257.0,93256.0,0.085259]
[1732095617696,0.36148,93260.0,93256.0,0.0317]
[1732095617897,0.3608,93260.0,93259.0,0.053557]
[1732095618296,0.40345292,93260.0,93259.0,0.053557]
[1732095621899,0.04265292,93260.0,93259.0,0.053557]
[1732095622203,0.04265292,93260.0,93256.0,0.0317]
[1732095622204,0.005,93271.0,93267.0,0.053552]
[1732095622398,0.053552,93269.0,93267.0,0.053552]
[1732095622597,0.12233951,93269.0,93267.0,0.053552]
[1732095622799,0.12233951,93269.0,93268.0,0.053552]
[1732095623693,0.04288352,93274.0,93264.0,0.11588]
[1732095623694,0.053549,93273.0,93270.0,0.05355]
[1732095623899,0.05355,93272.0,93271.0,0.0303]
[1732095628605,0.0214366,93274.0,93271.0,0.0303]
[1732095628802,0.0214366,93274.0,93273.0,0.053549]
[1732095629303,0.40515103,93277.0,93276.0,0.053548]
[1732095629503,0.04367103,93277.0,93276.0,0.053548]
[1732095629698,0.083643,93284.0,93273.0,0.25682758]
[1732095630003,0.083643,93284.0,93282.0,0.053544]
[1732095630215,0.12646552,93284.0,93282.0,0.053544]
[1732095630909,0.04282252,93284.0,93282.0,0.053544]
[1732095631100,0.3608,93294.0,93279.0,0.25682758]
[1732095631305,0.40441672,93294.0,93281.0,0.25682758]
[1732095631506,0.40441672,93294.0,93282.0,0.25682758]
[1732095631912,0.40441672,93294.0,93292.0,0.053538]
[1732095632101,0.40441672,93294.0,93293.0,0.0318]
[1732095632603,0.4096801,93294.0,93293.0,0.0318]
[1732095632804,0.40441672,93294.0,93293.0,0.0318]
[1732095633012,0.40978621,93294.0,93293.0,0.0318]
[1732095633412,0.40441672,93294.0,93293.0,0.0318]
[1732095634117,0.40973905,93294.0,93293.0,0.0318]
[1732095634713,0.43117414,93294.0,93278.0,0.053546]
[1732095634914,0.10297761,93282.0,93280.0,0.053545]
[1732095636310,0.00068,93285.0,93283.0,0.053544]
[1732095636507,0.00068,93285.0,93279.0,0.10964]
[1732095636508,0.053542,93286.0,93284.0,0.053543]
[1732095636702,0.053542,93286.0,93279.0,0.10964]
[1732095636908,0.053539,93292.0,93287.0,0.053541]
[1732095637117,0.43185414,93294.0,93293.0,0.053538]
[1732095637305,0.43122792,93294.0,93293.0,0.053538]
[1732095637710,0.42585181,93294.0,93293.0,0.053538]
[1732095638420,0.4312681,93294.0,93293.0,0.053538]
[1732095639211,0.4312681,93294.0,93293.0,0.163178]
[1732095639522,0.42585181,93294.0,93293.0,0.163178]
[1732095641636,0.52882942,93294.0,93270.0,0.0328]
[1732095641809,0.10297761,93278.0,93277.0,0.14064]
[1732095642014,0.15652361,93278.0,93277.0,0.14064]
[1732095645216,0.15652361,93278.0,93277.0,0.031]
[1732095645624,0.15652361,93278.0,93250.0,7.522e-05]
[1732095645625,0.19841312,93278.0,93264.0,0.163194]
[1732095645825,0.10297761,93264.0,93261.0,0.053556]
[1732095646624,0.053556,93262.0,93261.0,0.053556]
[1732095648130,0.053556,93262.0,93260.0,0.10964]
[1732095648131,0.053553,93266.0,93265.0,0.053554]
[1732095650328,0.053553,93266.0,93265.0,0.31038158]
[1732095650528,0.053553,93266.0,93265.0,0.053554]
[1732095651733,0.04272385,93268.0,93267.0,0.053553]
[1732095651933,0.053548,93276.0,93264.0,0.3608]
[1732095652141,0.053548,93276.0,93268.0,0.25647246]
[1732095652444,0.053548,93276.0,93275.0,0.053548]
[1732095652646,0.02142961,93278.0,93276.0,0.053548]
[1732095652647,0.04241212,93277.0,93276.0,0.053548]
[1732095652846,0.02142961,93278.0,93268.0,0.3608]
[1732095652847,0.02142961,93278.0,93273.0,0.32116093]
[1732095653047,0.02142961,93278.0,93277.0,0.053547]
[1732095654854,0.36148,93283.0,93282.0,0.053544]
[1732095655045,0.3608,93283.0,93282.0,0.053544]
[1732095655352,0.02142961,93293.0,93280.0,0.32116093]
[1732095655553,0.02142961,93293.0,93292.0,0.053538]
[1732095656055,0.02142961,93293.0,93289.0,0.25643297]
[1732095656056,0.404399,93294.0,93293.0,0.053538]
[1732095656246,0.403679,93294.0,93293.0,0.053538]
[1732095656850,0.3608,93294.0,93293.0,0.053538]
[1732095658350,0.414337,93294.0,93293.0,0.053538]
[1732095658560,0.43577257,93294.0,93293.0,0.053538]
[1732095658854,0.053538,93292.0,93291.0,0.163179]
[1732095659054,0.38291557,93294.0,93293.0,0.053538]
[1732095659257,0.38223557,93294.0,93293.0,0.053538]
[1732095661357,0.3109,93294.0,93289.0,0.10297761]
[1732095661550,0.005,93303.0,93298.0,0.053534]
[1732095661748,0.053531,93305.0,93299.0,0.053534]
[1732095661951,0.10297761,93301.0,93299.0,0.053534]
[1732095662865,0.10297761,93301.0,93294.0,0.053537]
[1732095663052,0.15651461,93294.0,93293.0,0.04254185]
[1732095663245,0.15651461,93294.0,93293.0,0.10964]
[1732095667253,0.10297761,93294.0,93293.0,0.10964]
[1732095668155,0.053533,93301.0,93299.0,0.053534]
[1732095668549,0.05353,93308.0,93293.0,0.15162455]
[1732095668753,0.05353,93308.0,93306.0,0.05353]
[1732095668953,0.05353,93308.0,93307.0,0.1076]
[1732095669754,0.46449761,93310.0,93302.0,0.1076]
[1732095669957,0.10297761,93303.0,93302.0,0.1076]
[1732095670156,0.15650961,93303.0,93302.0,0.1076]
[1732095671972,0.10297761,93303.0,93300.0,0.053534]
[1732095672262,0.053533,93302.0,93301.0,0.1076]
[1732095673862,0.05353,93307.0,93306.0,0.053529]
[1732095674859,0.50645923,93310.0,93309.0,0.053529]
[1732095675164,0.50577923,93310.0,93309.0,0.053529]
[1732095678063,0.55930723,93310.0,93309.0,0.053529]
[1732095682166,0.55930723,93310.0,93309.0,0.161129]
[1732095682867,0.45632962,93310.0,93309.0,0.3531685]
[1732095683062,0.45632962,93310.0,93309.0,0.161129]
[1732095683576,0.04200162,93310.0,93309.0,0.521929]
[1732095683869,0.053526,93314.0,93313.0,0.053526]
[1732095685169,0.04218148,93316.0,93315.0,0.053525]
[1732095685375,0.053524,93318.0,93317.0,0.053524]
[1732095686469,0.13347761,93322.0,93317.0,0.053524]
[1732095686470,0.053522,93321.0,93317.0,0.19238311]
[1732095686675,0.053522,93321.0,93309.0,0.3608]
[1732095686676,0.053528,93310.0,93309.0,0.19558387]
[1732095686974,0.053528,93310.0,93289.0,0.05354]
[1732095686975,0.053529,93308.0,93294.0,0.32116093]
[1732095687183,0.053545,93280.0,93279.0,0.00064]
[1732095687360,0.053552,93269.0,93268.0,0.00056]
[1732095687677,0.053552,93269.0,93258.0,0.00056]
[1732095687678,0.053557,93259.0,93258.0,0.00056]
[1732095687867,0.15653461,93259.0,93251.0,0.1076]
[1732095688782,0.06881202,93258.0,93251.0,0.1076]
[1732095689268,0.06881202,93258.0,93252.0,0.06881202]
[1732095689664,0.06881202,93258.0,93253.0,0.4684]
[1732095690267,0.053557,93259.0,93253.0,0.4684]
[1732095690980,0.053557,93259.0,93250.0,7.522e-05]
[1732095690981,0.053557,93259.0,93250.0,0.10767522]
[1732095691663,0.053557,93259.0,93250.0,7.522e-05]
[1732095696786,0.10300259,93258.0,93216.0,0.3608]
[1732095696980,0.053577,93225.0,93224.0,0.03]
[1732095697167,0.053577,93225.0,93208.0,0.0313]
[1732095697168,0.053585,93212.0,93208.0,0.0313]
[1732095697370,0.053585,93211.0,93209.0,0.03]
[1732095697976,7.522e-05,93210.0,93209.0,0.03]
[1732095700475,0.053591,93201.0,93193.0,0.031]
[1732095700691,0.414391,93201.0,93193.0,0.031]
[1732095702585,0.414391,93201.0,93191.0,0.0328]
[1732095704379,0.521311,93201.0,93200.0,0.00835182]
[1732095708407,0.414391,93201.0,93200.0,0.00835182]
[1732095713580,0.3608,93201.0,93200.0,0.06194282]
[1732095713982,0.053587,93207.0,93200.0,0.06194282]
[1732095713983,0.053587,93207.0,93205.0,0.053588]
[1732095716791,0.053587,93207.0,93205.0,0.0125439]
[1732095717000,7.522e-05,93210.0,93200.0,0.00835182]
[1732095717211,0.053589,93206.0,93205.0,0.053588]
[1732095717506,7.522e-05,93210.0,93200.0,0.00835182]
[1732095717507,0.05359,93202.0,93200.0,0.00835182]
[1732095717901,0.05359,93202.0,93200.0,0.06194282]
[1732095724499,0.41439,93202.0,93200.0,0.06194282]
[1732095724710,0.05359,93202.0,93200.0,0.00835182]
[1732095725212,0.053591,93201.0,93200.0,0.00835182]
[1732095725603,0.15659359,93201.0,93200.0,0.00835182]
[1732095731112,0.19961599,93201.0,93200.0,0.00835182]
[1732095732111,0.32462831,93201.0,93200.0,0.00835182]
[1732095732309,0.58242572,93201.0,93200.0,0.00835182]
[1732095733113,0.58242572,93201.0,93200.0,0.06194282]
[1732095734514,0.58242572,93201.0,93200.0,0.00835182]
[1732095734711,0.4574134,93201.0,93200.0,0.00835182]
[1732095736119,0.58189328,93201.0,93200.0,0.00835182]
[1732095736608,0.4574134,93201.0,93200.0,0.00835182]
[1732095737917,0.0966134,93201.0,93200.0,0.06194282]
[1732095738815,0.58176754,93201.0,93200.0,0.06194282]
[1732095739810,0.58176754,93201.0,93200.0,0.00835182]
[1732095740011,0.4574134,93201.0,93200.0,0.00835182]
[1732095740618,0.0966134,93201.0,93200.0,0.00835182]
[1732095740809,0.4574134,93201.0,93200.0,0.00835182]
[1732095741911,0.3608,93209.0,93200.0,0.00835182]
[1732095742107,0.05359,93202.0,93201.0,0.05359]
[1732095743110,0.40364425,93209.0,93200.0,0.00835182]
[1732095743416,0.053587,93207.0,93206.0,0.053588]
[1732095744617,0.40456425,93209.0,93208.0,0.053587]
[1732095744818,0.3608,93209.0,93208.0,0.053587]
[1732095746410,0.3608,93209.0,93208.0,0.40172824]
[1732095746610,7.522e-05,93210.0,93208.0,0.40172824]
[1732095746815,7.522e-05,93210.0,93209.0,0.34814124]
[1732095747021,7.522e-05,93210.0,93204.0,0.0646]
[1732095747220,7.522e-05,93210.0,93204.0,0.064]
[1732095747622,7.522e-05,93210.0,93208.0,0.053587]
[1732095748415,7.522e-05,93210.0,93209.0,0.10300259]
[1732095748616,7.522e-05,93210.0,93208.0,0.053587]
[1732095748828,0.10307781,93210.0,93208.0,0.053587]
[1732095749127,0.10307781,93210.0,93204.0,0.064]
[1732095749321,0.10307781,93210.0,93204.0,0.0318]
[1732095749724,0.10307781,93210.0,93207.0,0.053587]
[1732095750833,0.15666381,93210.0,93207.0,0.053587]
[1732095751322,0.10307781,93210.0,93199.0,0.414391]
[1732095751534,0.10300259,93201.0,93200.0,0.10361191]
[1732095754929,0.10300259,93201.0,93200.0,0.45588184]
[1732095755119,0.10300259,93201.0,93200.0,0.40229084]
[1732095755433,0.053591,93200.0,93198.0,0.25686566]
[1732095755622,0.053591,93200.0,93185.0,0.32107591]
[1732095755623,0.053599,93187.0,93185.0,0.32107591]
[1732095755819,0.3608,93188.0,93182.0,0.41765645]
[1732095756039,0.10300259,93183.0,93182.0,0.09658054]
[1732095757529,0.10300259,93183.0,93182.0,0.053601]
[1732095757729,0.053602,93182.0,93180.0,7.517e-05]
[1732095760531,0.053602,93182.0,93181.0,0.053602]
[1732095761220,0.053602,93182.0,93180.0,7.517e-05]
[1732095761733,0.0314,93181.0,93180.0,7.517e-05]
[1732095764228,0.0614,93181.0,93180.0,7.517e-05]
[1732095770837,0.115002,93181.0,93180.0,7.517e-05]
[1732095774732,0.18392984,93181.0,93180.0,7.517e-05]
[1732095778638,0.25285768,93181.0,93180.0,7.517e-05]
[1732095781433,0.18392984,93181.0,93180.0,7.517e-05]
[1732095784040,0.25285768,93181.0,93180.0,7.517e-05]
[1732095784444,0.25285768,93181.0,93168.0,0.32107591]
[1732095784445,0.053609,93169.0,93168.0,0.32107591]
[1732095785042,0.053612,93164.0,93163.0,0.3608]
[1732095785933,0.053612,93164.0,93163.0,0.414413]
[1732095786942,0.053612,93164.0,93163.0,0.3608]
[1732095789448,0.09720622,93164.0,93163.0,0.3608]
[1732095791448,0.09720622,93164.0,93162.0,0.053613]
[1732095791641,0.06892784,93163.0,93162.0,0.053613]
[1732095792043,0.06892784,93163.0,93162.0,0.39202117]
[1732095792754,0.06892784,93163.0,93162.0,0.79538356]
[1732095793142,0.12254084,93163.0,93162.0,0.79538356]
[1732095793955,0.12254084,93163.0,93162.0,0.39202117]
[1732095794253,0.12254084,93163.0,93162.0,0.33840817]
[1732095794643,0.19146868,93163.0,93162.0,0.33840817]
[1732095794952,0.19160696,93163.0,93162.0,0.33840817]
[1732095796247,0.12267912,93163.0,93162.0,0.33840817]
[1732095797253,0.19160696,93163.0,93162.0,0.33840817]
[1732095797441,0.12267912,93163.0,93162.0,0.33840817]
[1732095798352,0.00013828,93163.0,93162.0,0.39202117]
[1732095798558,0.00013828,93163.0,93162.0,0.77792035]
[1732095798740,0.04185336,93172.0,93171.0,0.053608]
[1732095798944,0.04185336,93172.0,93171.0,0.39201617]
[1732095799347,0.06892784,93174.0,93173.0,0.053607]
[1732095799548,0.06892784,93174.0,93173.0,0.39201517]
[1732095799744,0.06892784,93178.0,93177.0,0.053604]
[1732095799952,0.06892784,93178.0,93177.0,0.33800403]
[1732095800249,0.06892784,93178.0,93173.0,0.053607]
[1732095800446,0.06892784,93174.0,93173.0,0.053607]
[1732095802151,0.04326828,93184.0,93179.0,0.053603]
[1732095802152,0.06892784,93180.0,93179.0,0.053603]
[1732095806560,0.36168001,93188.0,93187.0,0.053599]
[1732095806751,0.3608,93188.0,93187.0,0.053599]
[1732095808658,0.11096974,93189.0,93187.0,0.053599]
[1732095810171,0.0054,93216.0,93188.0,0.49865568]
[1732095810463,0.2882712,93232.0,93214.0,0.053583]
[1732095810464,0.005,93215.0,93214.0,0.053583]
[1732095810655,0.064,93226.0,93214.0,0.42972784]
[1732095810853,0.064,93226.0,93223.0,0.3608]
[1732095811165,0.02145414,93224.0,93223.0,0.3608]
[1732095811550,0.02145414,93224.0,93223.0,0.55334054]
[1732095811967,0.02145414,93224.0,93223.0,0.3608]
[1732095812152,0.02145414,93224.0,93223.0,0.55319139]
[1732095812353,0.02145414,93224.0,93223.0,0.3608]
[1732095813368,0.064,93226.0,93223.0,0.3608]
[1732095814656,0.053577,93224.0,93222.0,0.053578]
[1732095815363,0.05358,93220.0,93214.0,0.46768]
[1732095815664,0.053577,93225.0,93214.0,0.3608]
[1732095815863,0.031,93219.0,93214.0,0.3608]
[1732095816261,0.031,93219.0,93218.0,0.053581]
[1732095818256,0.064,93226.0,93225.0,0.053577]
[1732095819169,0.064,93226.0,93224.0,0.10307886]
[1732095819170,0.0325,93228.0,93227.0,0.053576]
[1732095819366,0.04197167,93232.0,93231.0,0.053573]
[1732095821255,0.053564,93248.0,93242.0,0.053567]
[1732095821461,0.0967,93250.0,93249.0,0.053563]
[1732095823668,0.14039631,93250.0,93249.0,0.053563]
[1732095825268,0.19395931,93250.0,93249.0,0.053563]
[1732095826068,0.14039631,93250.0,93241.0,0.3608]
[1732095826273,0.053567,93243.0,93242.0,0.053567]
[1732095826568,0.14039631,93250.0,93238.0,0.10684]
[1732095826876,0.053564,93248.0,93246.0,0.053564]
[1732095827266,0.053564,93248.0,93247.0,0.053564]
[1732095828867,0.005,93262.0,93260.0,0.053557]
[1732095829071,0.0961,93267.0,93258.0,0.3608]
[1732095829272,0.0961,93267.0,93265.0,0.053554]
[1732095830970,0.13781288,93267.0,93265.0,0.053554]
[1732095832874,0.13781288,93267.0,93266.0,0.3608]
[1732095833873,0.005,93282.0,93281.0,0.053545]
[1732095834066,0.0333,93289.0,93288.0,0.053541]
[1732095834469,0.0333,93289.0,93288.0,0.414341]
[1732095835988,0.0333,93289.0,93288.0,0.053541]
[1732095838877,0.0333,93289.0,93280.0,0.3608]
[1732095839073,0.0333,93289.0,93280.0,0.4676]
[1732095839863,0.08684,93289.0,93286.0,0.053541]
[1732095840072,0.053541,93288.0,93286.0,0.053541]
[1732095840469,0.0333,93289.0,93280.0,0.4682]
[1732095840676,0.0333,93289.0,93280.0,0.3608]
[1732095840677,0.053542,93286.0,93280.0,0.3608]
[1732095841269,0.053543,93284.0,93280.0,0.053545]
[1732095841473,0.053543,93284.0,93282.0,0.053544]
[1732095841863,0.07636699,93289.0,93278.0,0.4676]
[1732095842074,0.07636699,93289.0,93286.0,0.053542]
[1732095842465,0.053541,93288.0,93286.0,0.053542]
[1732095842671,0.07636699,93289.0,93278.0,0.3608]
[1732095842863,0.07636699,93289.0,93270.0,0.3608]
[1732095842864,0.10307886,93283.0,93270.0,0.3608]
[1732095843068,0.07636699,93289.0,93252.0,1.50056]
[1732095843069,0.053555,93263.0,93262.0,0.005]
[1732095843271,0.053555,93263.0,93245.0,0.0618]
[1732095843272,0.3608,93263.0,93217.0,0.287581]
[1732095843500,0.053566,93245.0,93241.0,0.053568]
[1732095843779,0.053567,93243.0,93242.0,1.5]
[1732095845278,0.10307886,93253.0,93244.0,0.053566]
[1732095845976,0.053564,93247.0,93244.0,0.053566]
[1732095846564,0.053564,93247.0,93236.0,1.8608]
[1732095846768,0.04186546,93253.0,93236.0,1.96387886]
[1732095846967,0.10307886,93260.0,93236.0,1.96387886]
[1732095847174,0.0963,93262.0,93259.0,0.053557]
[1732095847379,0.053557,93261.0,93259.0,0.053557]
[1732095848577,0.053559,93257.0,93254.0,0.05356]
[1732095848978,0.053559,93256.0,93254.0,0.05356]
[1732095849179,0.053559,93256.0,93244.0,0.3608]
[1732095849180,0.053562,93252.0,93249.0,0.053563]
[1732095849383,0.053565,93247.0,93244.0,0.414366]
[1732095849980,0.053565,93246.0,93244.0,0.414366]
[1732095850286,0.053565,93246.0,93244.0,0.053566]
[1732095851383,0.10307886,93245.0,93236.0,0.10664]
[1732095851692,0.053569,93240.0,93239.0,0.053569]
[1732095852394,0.10307886,93245.0,93235.0,0.3608]
[1732095852584,0.10307886,93245.0,93236.0,0.053571]
[1732095852585,0.053566,93244.0,93236.0,0.053571]
[1732095852786,0.053569,93240.0,93237.0,0.05357]
[1732095852981,0.053569,93240.0,93238.0,0.053569]
[1732095853378,0.0331,93248.0,93235.0,0.3608]
[1732095853578,0.053565,93246.0,93245.0,0.053564]
[1732095857391,0.053562,93252.0,93251.0,0.053561]
[1732095859400,0.3608,93255.0,93254.0,0.05356]
[1732095859594,0.41436,93255.0,93254.0,0.05356]
[1732095860288,0.3608,93255.0,93238.0,0.23461101]
[1732095860490,0.3608,93255.0,93249.0,0.053562]
[1732095860491,0.053563,93250.0,93249.0,0.053562]
[1732095867493,0.0427189,93257.0,93249.0,0.10307886]
[1732095867691,0.419349,93273.0,93268.0,0.053552]
[1732095867893,0.053552,93269.0,93260.0,0.25545183]
[1732095868090,0.053552,93269.0,93256.0,0.3608]
[1732095868091,0.053552,93268.0,93267.0,0.053553]
[1732095868298,0.04175417,93271.0,93263.0,0.25545183]
[1732095868492,0.4525,93282.0,93256.0,0.3608]
[1732095868493,0.4525,93282.0,93266.0,0.10307886]
[1732095868791,0.4525,93282.0,93266.0,0.46387886]
[1732095868792,0.506045,93282.0,93266.0,0.46387886]
[1732095868996,0.506045,93282.0,93281.0,0.053545]
[1732095871198,0.053546,93279.0,93276.0,0.053547]
[1732095873508,0.45310001,93282.0,93271.0,0.05355]
[1732095873509,0.10307886,93278.0,93271.0,0.05355]
[1732095873697,0.053549,93273.0,93272.0,0.053549]
[1732095874504,0.3608,93273.0,93265.0,0.04179004]
[1732095874688,0.45310001,93282.0,93265.0,0.04179004]
[1732095874689,0.053553,93267.0,93265.0,0.04179004]
[1732095875308,0.053555,93264.0,93262.0,0.053555]
[1732095875695,0.0958,93263.0,93262.0,0.053555]
[1732095879200,0.149355,93263.0,93262.0,0.053555]
[1732095879403,0.149355,93263.0,93262.0,0.24569872]
[1732095879799,0.149355,93263.0,93262.0,0.053555]
[1732095881908,0.149355,93263.0,93252.0,0.19215278]
[1732095881909,0.0958,93263.0,93252.0,0.19215278]
[1732095882202,0.0958,93263.0,93234.0,0.06366]
[1732095882203,0.15663986,93253.0,93246.0,0.24571778]
[1732095882402,0.053563,93249.0,93240.0,0.10644]
[1732095882610,0.053563,93249.0,93246.0,0.053565]
[1732095882811,0.053563,93249.0,93247.0,0.053564]
[1732095883199,0.10307886,93253.0,93240.0,0.10644]
[1732095883507,0.053567,93243.0,93242.0,0.053567]
[1732095884903,0.10307886,93253.0,93236.0,0.3608]
[1732095885106,0.053569,93239.0,93238.0,0.053569]
[1732095887410,0.10307886,93239.0,93228.0,0.55351278]
[1732095887616,0.053574,93231.0,93228.0,0.414375]
[1732095887803,0.053574,93231.0,93229.0,0.053574]
[1732095888401,0.053575,93229.0,93228.0,0.3608]
[1732095890602,0.0432657,93239.0,93237.0,0.05357]
[1732095890802,0.053567,93242.0,93241.0,0.053568]
[1732095891008,0.053567,93242.0,93236.0,0.25545183]
[1732095891009,0.04376114,93242.0,93236.0,0.25545183]
[1732095891310,0.005,93252.0,93241.0,0.19207925]
[1732095891511,0.053564,93248.0,93243.0,0.19205814]
[1732095891713,0.0750087,93245.0,93243.0,0.19205814]
[1732095891912,0.0322,93245.0,93242.0,0.053567]
[1732095892112,0.0309,93244.0,93243.0,0.19205035]
[1732095892413,0.160039,93256.0,93246.0,0.053565]
[1732095892612,0.04267637,93254.0,93252.0,0.053561]
[1732095892810,0.160039,93256.0,93254.0,0.05356]
[1732095892811,0.053559,93256.0,93254.0,0.05356]
[1732095893110,0.0958,93258.0,93254.0,0.05356]
[1732095893111,0.0958,93258.0,93256.0,0.053559]
[1732095893310,0.0635,93258.0,93256.0,0.053559]
[1732095893512,0.0635,93258.0,93257.0,0.19202627]
[1732095893816,0.36140001,93259.0,93257.0,0.24558427]
[1732095894014,0.3608,93259.0,93257.0,0.053558]
[1732095894312,0.10307886,93266.0,93247.0,0.31931479]
[1732095894313,0.10307886,93266.0,93261.0,0.053556]
[1732095894507,0.053555,93264.0,93261.0,0.053556]
[1732095895011,0.0661,93268.0,93252.0,0.3608]
[1732095895012,0.0661,93268.0,93260.0,0.19201023]
[1732095895211,0.0661,93268.0,93267.0,0.053553]
[1732095895717,0.14630625,93273.0,93271.0,0.05355]